[Event "*** SCC Grand Prix: Titled Tuesday Blitz"]
[Site "Chess.com"]
[Date "2020.08.25"]
[Round "8"]
[White "Paladin61"]
[Black "Izoria123"]
[Result "0-1"]
[WhiteElo "2675"]
[BlackElo "2847"]
[TimeControl "180+1"]
[EndTime "11:37:47 PDT"]
[Termination "Izoria123 won by checkmate"]

1. b3 {[%clk 0:03:00.9]} 1... a5 {[%clk 0:02:56.8]} 2. Bb2 {[%clk 0:02:59.2]}
2... a4 {[%clk 0:02:56.5]} 3. e3 {[%clk 0:02:59.7]} 3... e6 {[%clk 0:02:53.2]}
4. c4 {[%clk 0:02:53.7]} 4... axb3 {[%clk 0:02:52.6]} 5. axb3 {[%clk 0:02:53.3]}
5... Rxa1 {[%clk 0:02:53.5]} 6. Bxa1 {[%clk 0:02:53.9]} 6... Nf6 {[%clk
0:02:53.5]} 7. Nf3 {[%clk 0:02:53.2]} 7... Be7 {[%clk 0:02:50.7]} 8. d4 {[%clk
0:02:47]} 8... O-O {[%clk 0:02:50.9]} 9. Bd3 {[%clk 0:02:46.5]} 9... Nc6 {[%clk
0:02:50.9]} 10. Nc3 {[%clk 0:02:33.4]} 10... Nb4 {[%clk 0:02:49]} 11. Bb1 {[%clk
0:02:33.4]} 11... d5 {[%clk 0:02:46.4]} 12. O-O {[%clk 0:02:32.7]} 12... b6
{[%clk 0:02:46.3]} 13. Ne5 {[%clk 0:02:26.8]} 13... Bb7 {[%clk 0:02:45.6]} 14.
Bb2 {[%clk 0:02:17.2]} 14... c5 {[%clk 0:02:38.2]} 15. Nb5 {[%clk 0:02:10.2]}
15... cxd4 {[%clk 0:02:26.9]} 16. exd4 {[%clk 0:02:04.7]} 16... Nd7 {[%clk
0:02:21.5]} 17. Nf3 {[%clk 0:01:26.7]} 17... Ba6 {[%clk 0:02:08.9]} 18. Qe2
{[%clk 0:01:20.6]} 18... dxc4 {[%clk 0:02:06.6]} 19. bxc4 {[%clk 0:01:19.6]}
19... Bxb5 {[%clk 0:02:06]} 20. cxb5 {[%clk 0:01:19.6]} 20... Nd5 {[%clk
0:02:06.9]} 21. Rc1 {[%clk 0:01:12.7]} 21... Qa8 {[%clk 0:01:58.5]} 22. Qc2
{[%clk 0:01:05.6]} 22... g6 {[%clk 0:01:57.4]} 23. h3 {[%clk 0:00:57.8]} 23...
Ba3 {[%clk 0:01:49.5]} 24. Qb3 {[%clk 0:00:44.2]} 24... Bxb2 {[%clk 0:01:45.7]}
25. Qxb2 {[%clk 0:00:45.1]} 25... Qa5 {[%clk 0:01:37]} 26. Be4 {[%clk
0:00:37.6]} 26... N7f6 {[%clk 0:01:35.3]} 27. Bxd5 {[%clk 0:00:37.6]} 27... Nxd5
{[%clk 0:01:36.2]} 28. Ne5 {[%clk 0:00:37.8]} 28... Ra8 {[%clk 0:01:30.7]} 29.
Qb3 {[%clk 0:00:28.6]} 29... Qd2 {[%clk 0:01:21.4]} 30. Rd1 {[%clk 0:00:28.6]}
30... Qf4 {[%clk 0:01:22]} 31. Nc6 {[%clk 0:00:19.3]} 31... Qe4 {[%clk
0:01:14.4]} 32. Qb1 {[%clk 0:00:14.1]} 32... Qxb1 {[%clk 0:00:53.7]} 33. Rxb1
{[%clk 0:00:15]} 33... Ra2 {[%clk 0:00:53.3]} 34. Rb3 {[%clk 0:00:13.1]} 34...
Rd2 {[%clk 0:00:49.6]} 35. Rf3 {[%clk 0:00:12.3]} 35... g5 {[%clk 0:00:47.7]}
36. Ne5 {[%clk 0:00:09.9]} 36... f6 {[%clk 0:00:47.6]} 37. Nc6 {[%clk
0:00:09.8]} 37... Rb2 {[%clk 0:00:46.5]} 38. Ra3 {[%clk 0:00:08.9]} 38... Rxb5
{[%clk 0:00:44.7]} 39. Ra7 {[%clk 0:00:07.6]} 39... Rb1+ {[%clk 0:00:42.5]} 40.
Kh2 {[%clk 0:00:06.7]} 40... Rb2 {[%clk 0:00:43.4]} 41. Kg1 {[%clk 0:00:07]}
41... Rb1+ {[%clk 0:00:35.5]} 42. Kh2 {[%clk 0:00:06.4]} 42... h5 {[%clk
0:00:25.8]} 43. Ne7+ {[%clk 0:00:06.2]} 43... Nxe7 {[%clk 0:00:25.1]} 44. Rxe7
{[%clk 0:00:07.1]} 44... Re1 {[%clk 0:00:24.6]} 45. Rb7 {[%clk 0:00:07]} 45...
Rb1 {[%clk 0:00:23.6]} 46. Re7 {[%clk 0:00:06.8]} 46... Re1 {[%clk 0:00:21.6]}
47. Rb7 {[%clk 0:00:06.6]} 47... Rd1 {[%clk 0:00:18.4]} 48. Rxb6 {[%clk
0:00:05.7]} 48... Kf7 {[%clk 0:00:18.7]} 49. Rb7+ {[%clk 0:00:05.4]} 49... Kg6
{[%clk 0:00:18.2]} 50. Rb6 {[%clk 0:00:05.6]} 50... Kf5 {[%clk 0:00:18]} 51.
Rb5+ {[%clk 0:00:05.8]} 51... Ke4 {[%clk 0:00:18.1]} 52. Rb6 {[%clk 0:00:05.1]}
52... Kd5 {[%clk 0:00:18.3]} 53. Rb5+ {[%clk 0:00:04.7]} 53... Kxd4 {[%clk
0:00:18.3]} 54. Rb7 {[%clk 0:00:04.8]} 54... Ke5 {[%clk 0:00:18.5]} 55. Rh7
{[%clk 0:00:04.4]} 55... h4 {[%clk 0:00:18.4]} 56. Ra7 {[%clk 0:00:05.3]} 56...
Rd2 {[%clk 0:00:17.8]} 57. Ra5+ {[%clk 0:00:05]} 57... Rd5 {[%clk 0:00:17.2]}
58. Ra4 {[%clk 0:00:04.2]} 58... Kf5 {[%clk 0:00:17.5]} 59. Kg1 {[%clk
0:00:03.7]} 59... Rd1+ {[%clk 0:00:17.2]} 60. Kh2 {[%clk 0:00:03.3]} 60... Rd2
{[%clk 0:00:17.9]} 61. Kg1 {[%clk 0:00:02.8]} 61... e5 {[%clk 0:00:18.8]} 62.
Ra5 {[%clk 0:00:02.6]} 62... Kf4 {[%clk 0:00:17.3]} 63. Ra8 {[%clk 0:00:03]}
63... e4 {[%clk 0:00:16.9]} 64. Ra4 {[%clk 0:00:02.8]} 64... f5 {[%clk
0:00:17.1]} 65. Kf1 {[%clk 0:00:02.4]} 65... Rb2 {[%clk 0:00:16.5]} 66. Ke1
{[%clk 0:00:03.1]} 66... Rb1+ {[%clk 0:00:13.4]} 67. Ke2 {[%clk 0:00:02.9]}
67... Rb2+ {[%clk 0:00:14.3]} 68. Kf1 {[%clk 0:00:02.4]} 68... g4 {[%clk
0:00:14]} 69. hxg4 {[%clk 0:00:01.9]} 69... fxg4 {[%clk 0:00:14.2]} 70. Ra8
{[%clk 0:00:02.6]} 70... g3 {[%clk 0:00:14.3]} 71. Rf8+ {[%clk 0:00:03.5]} 71...
Ke5 {[%clk 0:00:14.4]} 72. fxg3 {[%clk 0:00:03.9]} 72... hxg3 {[%clk 0:00:14.7]}
73. Rg8 {[%clk 0:00:04.6]} 73... Kf4 {[%clk 0:00:15.1]} 74. Rf8+ {[%clk
0:00:04.1]} 74... Ke3 {[%clk 0:00:15.3]} 75. Re8 {[%clk 0:00:04.7]} 75... Rb1#
{[%clk 0:00:15.4]} 0-1

[Event "*** SCC Grand Prix: Titled Tuesday Blitz"]
[Site "Chess.com"]
[Date "2020.08.25"]
[Round "8"]
[White "Jumbo"]
[Black "karinachess1"]
[Result "1-0"]
[WhiteElo "2777"]
[BlackElo "2487"]
[TimeControl "180+1"]
[EndTime "11:37:48 PDT"]
[Termination "Jumbo won on time"]

1. d4 {[%clk 0:03:00.9]} 1... Nf6 {[%clk 0:02:59.1]} 2. Bf4 {[%clk 0:03:00.1]}
2... d5 {[%clk 0:02:56.1]} 3. e3 {[%clk 0:02:58]} 3... e6 {[%clk 0:02:55.1]} 4.
Nf3 {[%clk 0:02:52.8]} 4... Bd6 {[%clk 0:02:54.7]} 5. Bg3 {[%clk 0:02:50.7]}
5... O-O {[%clk 0:02:54]} 6. c4 {[%clk 0:02:50.5]} 6... dxc4 {[%clk 0:02:35.3]}
7. Bxc4 {[%clk 0:02:49.7]} 7... c5 {[%clk 0:02:33.9]} 8. Nc3 {[%clk 0:02:46.7]}
8... cxd4 {[%clk 0:02:12.8]} 9. Nxd4 {[%clk 0:02:38]} 9... a6 {[%clk 0:01:35.5]}
10. Nc6 {[%clk 0:02:19.9]} 10... Nxc6 {[%clk 0:01:35.5]} 11. Bxd6 {[%clk
0:02:08.3]} 11... Re8 {[%clk 0:01:35.5]} 12. O-O {[%clk 0:01:50.8]} 12... b5
{[%clk 0:01:32.9]} 13. Be2 {[%clk 0:01:50.8]} 13... Bb7 {[%clk 0:01:32.9]} 14.
Rc1 {[%clk 0:01:49.5]} 14... Qb6 {[%clk 0:01:26.4]} 15. Bg3 {[%clk 0:01:33.3]}
15... Red8 {[%clk 0:01:24.2]} 16. Qc2 {[%clk 0:01:33.3]} 16... Rac8 {[%clk
0:01:16.2]} 17. Rfd1 {[%clk 0:01:27.7]} 17... Nb4 {[%clk 0:01:00.6]} 18. Qb1
{[%clk 0:01:17.7]} 18... Nbd5 {[%clk 0:00:59.6]} 19. Nxd5 {[%clk 0:01:10.3]}
19... Bxd5 {[%clk 0:01:00.2]} 20. Bd3 {[%clk 0:01:08.4]} 20... Qb7 {[%clk
0:00:41.9]} 21. f3 {[%clk 0:01:07.3]} 21... h6 {[%clk 0:00:16.9]} 22. Rxc8
{[%clk 0:00:37.7]} 22... Rxc8 {[%clk 0:00:16.5]} 23. b3 {[%clk 0:00:35]} 23...
Bc6 {[%clk 0:00:13.4]} 24. e4 {[%clk 0:00:34.4]} 24... b4 {[%clk 0:00:10]} 25.
Rc1 {[%clk 0:00:28.2]} 25... Bd7 {[%clk 0:00:08.2]} 26. Rxc8+ {[%clk 0:00:22.2]}
26... Qxc8 {[%clk 0:00:09.1]} 27. Qc2 {[%clk 0:00:22]} 27... Qb7 {[%clk
0:00:03.6]} 28. Qc5 {[%clk 0:00:21.6]} 28... Ne8 {[%clk 0:00:02.6]} 29. Be1
{[%clk 0:00:20.7]} 29... Bb5 {[%clk 0:00:01.9]} 30. Qxb4 {[%clk 0:00:20.5]}
30... Qc6 {[%clk 0:00:01.5]} 31. Bxb5 {[%clk 0:00:18.8]} 31... axb5 {[%clk
0:00:02.4]} 32. Qc3 {[%clk 0:00:18.8]} 32... Qd7 {[%clk 0:00:02.3]} 33. Qd2
{[%clk 0:00:18.8]} 33... Qa7+ {[%clk 0:00:02.5]} 34. Bf2 {[%clk 0:00:18.9]}
34... Qc7 {[%clk 0:00:02.4]} 35. a4 {[%clk 0:00:17.2]} 35... bxa4 {[%clk
0:00:02.3]} 36. bxa4 {[%clk 0:00:18.1]} 36... Nd6 {[%clk 0:00:02]} 37. h3 {[%clk
0:00:16.5]} 37... Nb7 {[%clk 0:00:01.2]} 38. Be3 {[%clk 0:00:09.7]} 38... Kh7
{[%clk 0:00:01.8]} 39. Qd4 {[%clk 0:00:07.9]} 39... Qc6 {[%clk 0:00:01.9]} 40.
Qb6 {[%clk 0:00:06.8]} 40... Qc8 {[%clk 0:00:01.8]} 41. Qb4 {[%clk 0:00:04.3]}
41... Qc6 {[%clk 0:00:01.8]} 42. Kf2 {[%clk 0:00:04.3]} 42... Qa6 {[%clk
0:00:02.1]} 43. Bd2 {[%clk 0:00:04]} 43... Nd6 {[%clk 0:00:02]} 44. a5 {[%clk
0:00:03.8]} 44... Nc4 {[%clk 0:00:02.1]} 45. Bc3 {[%clk 0:00:04.2]} 45... Qc6
{[%clk 0:00:01.8]} 46. Kg1 {[%clk 0:00:03.6]} 46... e5 {[%clk 0:00:02.2]} 47.
Kh1 {[%clk 0:00:03.7]} 47... Nd6 {[%clk 0:00:02.6]} 48. Bxe5 {[%clk 0:00:02.9]}
48... Nb5 {[%clk 0:00:03]} 49. Kh2 {[%clk 0:00:03.1]} 49... f6 {[%clk
0:00:03.2]} 50. Bg3 {[%clk 0:00:04]} 50... h5 {[%clk 0:00:03]} 51. Qb3 {[%clk
0:00:03.7]} 51... g5 {[%clk 0:00:03.2]} 52. Qd5 {[%clk 0:00:03.9]} 52... Qa6
{[%clk 0:00:02.5]} 53. Qf7+ {[%clk 0:00:03.9]} 53... Kh6 {[%clk 0:00:03]} 54. e5
{[%clk 0:00:04.3]} 54... h4 {[%clk 0:00:03.4]} 55. Bf2 {[%clk 0:00:04.3]} 55...
fxe5 {[%clk 0:00:03.9]} 56. Be3 {[%clk 0:00:04]} 56... Nd4 {[%clk 0:00:03.6]}
57. Qf8+ {[%clk 0:00:03.9]} 57... Kh7 {[%clk 0:00:03.5]} 58. Qe7+ {[%clk
0:00:04.4]} 58... Kh8 {[%clk 0:00:03.2]} 59. Qxg5 {[%clk 0:00:04.8]} 59... Nxf3+
{[%clk 0:00:02.3]} 60. gxf3 {[%clk 0:00:04.5]} 60... Qe2+ {[%clk 0:00:03.2]} 61.
Kg1 {[%clk 0:00:04.8]} 61... Qe1+ {[%clk 0:00:03.1]} 62. Kg2 {[%clk 0:00:05.4]}
62... Qe2+ {[%clk 0:00:02.8]} 63. Bf2 {[%clk 0:00:05.9]} 1-0

[Event "*** SCC Grand Prix: Titled Tuesday Blitz"]
[Site "Chess.com"]
[Date "2020.08.25"]
[Round "8"]
[White "azikom"]
[Black "A-Fier"]
[Result "0-1"]
[WhiteElo "2631"]
[BlackElo "2759"]
[TimeControl "180+1"]
[EndTime "11:37:53 PDT"]
[Termination "A-Fier won by resignation"]

1. d4 {[%clk 0:03:00]} 1... Nf6 {[%clk 0:02:52.3]} 2. Nf3 {[%clk 0:02:59.1]}
2... e6 {[%clk 0:02:48.7]} 3. Bf4 {[%clk 0:02:59.6]} 3... d5 {[%clk 0:02:46.2]}
4. e3 {[%clk 0:02:59.4]} 4... Bd6 {[%clk 0:02:46.8]} 5. Bg3 {[%clk 0:02:55.6]}
5... O-O {[%clk 0:02:45.4]} 6. Nbd2 {[%clk 0:02:55.3]} 6... b6 {[%clk
0:02:45.9]} 7. c4 {[%clk 0:02:55]} 7... Bb7 {[%clk 0:02:44.1]} 8. a3 {[%clk
0:02:55]} 8... Nbd7 {[%clk 0:02:44.1]} 9. cxd5 {[%clk 0:02:53.7]} 9... Bxd5
{[%clk 0:02:40.6]} 10. Bc4 {[%clk 0:02:48.3]} 10... Qe7 {[%clk 0:02:33]} 11. O-O
{[%clk 0:02:44.7]} 11... Bxg3 {[%clk 0:02:31.9]} 12. hxg3 {[%clk 0:02:44]} 12...
c5 {[%clk 0:02:32.8]} 13. Rc1 {[%clk 0:02:40.3]} 13... Rfd8 {[%clk 0:02:32.2]}
14. Qe2 {[%clk 0:02:38.6]} 14... e5 {[%clk 0:02:28.9]} 15. Bxd5 {[%clk
0:02:23.7]} 15... Nxd5 {[%clk 0:02:29.8]} 16. Qc4 {[%clk 0:02:09.4]} 16... N5f6
{[%clk 0:02:26.2]} 17. Rfe1 {[%clk 0:01:24.9]} 17... e4 {[%clk 0:02:25.6]} 18.
Nh2 {[%clk 0:01:22.9]} 18... cxd4 {[%clk 0:02:22.4]} 19. exd4 {[%clk 0:01:21.2]}
19... Re8 {[%clk 0:02:19.2]} 20. Nhf1 {[%clk 0:01:19.1]} 20... a6 {[%clk
0:02:15.9]} 21. Ne3 {[%clk 0:01:17.3]} 21... b5 {[%clk 0:02:16.4]} 22. Qc6
{[%clk 0:01:16.8]} 22... Qe6 {[%clk 0:02:11.2]} 23. Qxe6 {[%clk 0:01:15.2]}
23... Rxe6 {[%clk 0:02:11.6]} 24. Nb3 {[%clk 0:01:13.5]} 24... g6 {[%clk
0:02:09.8]} 25. Rc7 {[%clk 0:01:12.3]} 25... Rd6 {[%clk 0:02:09.8]} 26. Rec1
{[%clk 0:01:10.8]} 26... Nb6 {[%clk 0:02:08.3]} 27. R1c6 {[%clk 0:01:09]} 27...
Rad8 {[%clk 0:02:08.3]} 28. Nc5 {[%clk 0:01:05]} 28... Nfd5 {[%clk 0:02:08.4]}
29. Nxd5 {[%clk 0:01:00.7]} 29... Nxd5 {[%clk 0:02:09.3]} 30. Rxd6 {[%clk
0:00:59.9]} 30... Rxd6 {[%clk 0:02:08.4]} 31. Ra7 {[%clk 0:00:59.7]} 31... e3
{[%clk 0:02:02.5]} 32. fxe3 {[%clk 0:00:54.1]} 32... Nxe3 {[%clk 0:02:03.4]} 33.
Rxa6 {[%clk 0:00:49.3]} 33... Rxd4 {[%clk 0:02:03.7]} 34. Kf2 {[%clk 0:00:49.8]}
34... Ng4+ {[%clk 0:02:03.4]} 35. Kf3 {[%clk 0:00:50]} 35... h5 {[%clk
0:02:03.7]} 36. Ne4 {[%clk 0:00:49.1]} 36... Kg7 {[%clk 0:01:53.7]} 37. Ra7
{[%clk 0:00:45.2]} 37... Rd1 {[%clk 0:01:43.8]} 38. Ng5 {[%clk 0:00:41.1]} 38...
Rf1+ {[%clk 0:01:43.7]} 39. Ke4 {[%clk 0:00:40.1]} 39... Rf5 {[%clk 0:01:41.7]}
40. Nf3 {[%clk 0:00:39.2]} 40... Nf6+ {[%clk 0:01:38.2]} 41. Kd3 {[%clk
0:00:38.7]} 41... Rd5+ {[%clk 0:01:38.7]} 42. Kc2 {[%clk 0:00:37.8]} 42... Ne4
{[%clk 0:01:39]} 43. a4 {[%clk 0:00:36.1]} 43... bxa4 {[%clk 0:01:38.9]} 44.
Rxa4 {[%clk 0:00:36.5]} 44... Nxg3 {[%clk 0:01:39.5]} 45. b4 {[%clk 0:00:36.6]}
45... Nf5 {[%clk 0:01:39.2]} 46. Kc3 {[%clk 0:00:35.9]} 46... Ne3 {[%clk
0:01:39.1]} 47. Ra5 {[%clk 0:00:35.9]} 47... Rd8 {[%clk 0:01:37.5]} 48. g3
{[%clk 0:00:35.2]} 48... Nf5 {[%clk 0:01:37.3]} 49. Ne5 {[%clk 0:00:35]} 49...
Re8 {[%clk 0:01:35.3]} 50. g4 {[%clk 0:00:33.7]} 50... hxg4 {[%clk 0:01:32.9]}
51. Nxg4 {[%clk 0:00:33.9]} 51... Rc8+ {[%clk 0:01:31.4]} 52. Rc5 {[%clk
0:00:33.5]} 52... Rb8 {[%clk 0:01:31.4]} 53. b5 {[%clk 0:00:33.6]} 53... Nd6
{[%clk 0:01:28.1]} 54. Kb4 {[%clk 0:00:33.7]} 54... f5 {[%clk 0:01:27.2]} 55.
Ne5 {[%clk 0:00:33.9]} 55... g5 {[%clk 0:01:26.1]} 56. Rc7+ {[%clk 0:00:33.5]}
56... Kh6 {[%clk 0:01:25.8]} 57. Rc5 {[%clk 0:00:32.6]} 57... Kh5 {[%clk
0:01:21.1]} 58. Rd5 {[%clk 0:00:31.9]} 58... Ne4 {[%clk 0:01:09.9]} 59. Nc6
{[%clk 0:00:29.4]} 59... Rf8 {[%clk 0:01:08.8]} 60. b6 {[%clk 0:00:28.2]} 60...
f4 {[%clk 0:01:09.3]} 61. b7 {[%clk 0:00:28.2]} 61... f3 {[%clk 0:01:08.1]} 62.
Rf5 {[%clk 0:00:26.8]} 62... Rxf5 {[%clk 0:01:07.6]} 63. b8=Q {[%clk 0:00:26.6]}
63... f2 {[%clk 0:01:06.9]} 64. Qh2+ {[%clk 0:00:22.1]} 64... Kg6 {[%clk
0:01:06.8]} 65. Ne7+ {[%clk 0:00:22]} 65... Kf6 {[%clk 0:01:07.1]} 66. Nxf5
{[%clk 0:00:20.9]} 66... f1=Q {[%clk 0:01:07.5]} 67. Nd4 {[%clk 0:00:13.7]}
67... Qb1+ {[%clk 0:01:01]} 68. Kc4 {[%clk 0:00:12.8]} 68... Qc1+ {[%clk
0:01:00.1]} 69. Kd5 {[%clk 0:00:11.1]} 69... Nc3+ {[%clk 0:00:59.9]} 70. Kd6
{[%clk 0:00:11]} 70... Qf4+ {[%clk 0:00:58.4]} 71. Qxf4+ {[%clk 0:00:10.6]}
71... gxf4 {[%clk 0:00:59.3]} 72. Nf3 {[%clk 0:00:10.8]} 72... Kf5 {[%clk
0:00:59.8]} 73. Kc5 {[%clk 0:00:10.5]} 73... Ke4 {[%clk 0:01:00]} 74. Ng5+
{[%clk 0:00:10.3]} 74... Ke3 {[%clk 0:01:00.5]} 75. Kc4 {[%clk 0:00:10.2]} 75...
Ne4 {[%clk 0:01:01.1]} 76. Nh3 {[%clk 0:00:10.3]} 76... f3 {[%clk 0:01:01.6]}
77. Kd5 {[%clk 0:00:09.9]} 77... Ng5 {[%clk 0:00:58.9]} 78. Nxg5 {[%clk
0:00:09.9]} 78... f2 {[%clk 0:00:59.3]} 79. Ne6 {[%clk 0:00:09.6]} 79... f1=Q
{[%clk 0:00:59.6]} 80. Nd4 {[%clk 0:00:10.3]} 80... Qd3 {[%clk 0:00:59.2]} 0-1

[Event "*** SCC Grand Prix: Titled Tuesday Blitz"]
[Site "Chess.com"]
[Date "2020.08.25"]
[Round "8"]
[White "Caterpiller35"]
[Black "BlackBoarder"]
[Result "0-1"]
[WhiteElo "2348"]
[BlackElo "2534"]
[TimeControl "180+1"]
[EndTime "11:37:53 PDT"]
[Termination "BlackBoarder won on time"]

1. d4 {[%clk 0:01:40.9]} 1... e6 {[%clk 0:02:54.2]} 2. Bf4 {[%clk 0:01:39.7]}
2... Nf6 {[%clk 0:02:53.6]} 3. e3 {[%clk 0:01:39.9]} 3... c5 {[%clk 0:02:53]} 4.
c3 {[%clk 0:01:39.9]} 4... Nc6 {[%clk 0:02:53.2]} 5. Nd2 {[%clk 0:01:40]} 5...
Be7 {[%clk 0:02:51.7]} 6. Ngf3 {[%clk 0:01:39.4]} 6... d5 {[%clk 0:02:50.8]} 7.
Bd3 {[%clk 0:01:37.2]} 7... Nh5 {[%clk 0:02:50.8]} 8. Bg3 {[%clk 0:01:33.2]}
8... O-O {[%clk 0:02:48.3]} 9. Ne5 {[%clk 0:01:32.4]} 9... g6 {[%clk 0:02:48]}
10. f4 {[%clk 0:01:28]} 10... Qb6 {[%clk 0:02:05.7]} 11. Rb1 {[%clk 0:01:22.9]}
11... Nxe5 {[%clk 0:01:57.2]} 12. fxe5 {[%clk 0:01:20.7]} 12... Bd7 {[%clk
0:01:36.7]} 13. Bf2 {[%clk 0:01:19.6]} 13... Bb5 {[%clk 0:01:30.8]} 14. Bc2
{[%clk 0:01:18.3]} 14... Ng7 {[%clk 0:01:22.3]} 15. h4 {[%clk 0:01:16.4]} 15...
Qa6 {[%clk 0:00:48.9]} 16. h5 {[%clk 0:01:07]} 16... Bd3 {[%clk 0:00:48]} 17.
hxg6 {[%clk 0:00:59.9]} 17... fxg6 {[%clk 0:00:46.4]} 18. Bxd3 {[%clk
0:00:54.8]} 18... Qxd3 {[%clk 0:00:45.2]} 19. Nf3 {[%clk 0:00:54.9]} 19... Qe4
{[%clk 0:00:36.2]} 20. Rc1 {[%clk 0:00:52.5]} 20... cxd4 {[%clk 0:00:26.1]} 21.
cxd4 {[%clk 0:00:49.2]} 21... Rac8 {[%clk 0:00:25.7]} 22. O-O {[%clk 0:00:46.1]}
22... Nf5 {[%clk 0:00:22.2]} 23. Qb3 {[%clk 0:00:44.1]} 23... b6 {[%clk
0:00:18.1]} 24. Qa4 {[%clk 0:00:39.4]} 24... Rxc1 {[%clk 0:00:10.4]} 25. Rxc1
{[%clk 0:00:38.9]} 25... Kf7 {[%clk 0:00:04.1]} 26. Qxa7 {[%clk 0:00:34.1]}
26... h6 {[%clk 0:00:03.4]} 27. Rc7 {[%clk 0:00:30.9]} 27... Qb1+ {[%clk
0:00:02.6]} 28. Kh2 {[%clk 0:00:27.8]} 28... Qxb2 {[%clk 0:00:02.9]} 29. Bh4
{[%clk 0:00:21.7]} 29... g5 {[%clk 0:00:02]} 30. Bxg5 {[%clk 0:00:16]} 30...
hxg5 {[%clk 0:00:02.1]} 31. Nxg5+ {[%clk 0:00:16.9]} 31... Kg6 {[%clk
0:00:02.2]} 32. Rxe7 {[%clk 0:00:09.8]} 32... Nxe7 {[%clk 0:00:02.2]} 33. Qxe7
{[%clk 0:00:09.2]} 33... Qf2 {[%clk 0:00:02.8]} 34. Nh3 {[%clk 0:00:06.3]} 34...
Qf7 {[%clk 0:00:02.4]} 35. Qg5+ {[%clk 0:00:05.7]} 35... Kh7 {[%clk 0:00:02.9]}
36. Qh4+ {[%clk 0:00:05.7]} 36... Kg8 {[%clk 0:00:03.3]} 37. Ng5 {[%clk
0:00:05.1]} 37... Qg6 {[%clk 0:00:03.7]} 38. Qg3 {[%clk 0:00:04.8]} 38... Rf5
{[%clk 0:00:03.4]} 39. Nf3 {[%clk 0:00:04.4]} 39... Qxg3+ {[%clk 0:00:03.3]} 40.
Kxg3 {[%clk 0:00:05.3]} 40... Kf7 {[%clk 0:00:02.9]} 41. Kf2 {[%clk 0:00:05.6]}
41... Ke7 {[%clk 0:00:03.2]} 42. Ke2 {[%clk 0:00:06]} 42... Rf8 {[%clk
0:00:03.8]} 43. Kd3 {[%clk 0:00:06.6]} 43... Ra8 {[%clk 0:00:04.4]} 44. g4
{[%clk 0:00:05.3]} 44... Rxa2 {[%clk 0:00:04.7]} 45. Kc3 {[%clk 0:00:05.5]}
45... Re2 {[%clk 0:00:04.5]} 46. Kd3 {[%clk 0:00:05.4]} 46... Rg2 {[%clk
0:00:04.9]} 47. g5 {[%clk 0:00:05.3]} 47... Kd7 {[%clk 0:00:05.5]} 48. e4 {[%clk
0:00:04.1]} 48... Rg3 {[%clk 0:00:04.9]} 49. Ke3 {[%clk 0:00:04.1]} 49... dxe4
{[%clk 0:00:05.3]} 50. Kxe4 {[%clk 0:00:05]} 50... b5 {[%clk 0:00:05.8]} 51. Kf4
{[%clk 0:00:04.1]} 51... Rg2 {[%clk 0:00:05.7]} 52. Ne1 {[%clk 0:00:03.6]} 52...
Rf2+ {[%clk 0:00:04.4]} 53. Ke3 {[%clk 0:00:02.2]} 53... Rf1 {[%clk 0:00:04.9]}
54. Nd3 {[%clk 0:00:02.2]} 54... Rg1 {[%clk 0:00:04.6]} 55. Kf4 {[%clk
0:00:02.4]} 55... Kc6 {[%clk 0:00:04.4]} 56. Nc5 {[%clk 0:00:02.2]} 56... Kd5
{[%clk 0:00:04.4]} 57. Nd7 {[%clk 0:00:01.7]} 57... b4 {[%clk 0:00:03.9]} 58. g6
{[%clk 0:00:01.7]} 58... Rxg6 {[%clk 0:00:02.8]} 0-1